Workbook

Sheet 附件1
A1: 附件1
A2: 2017年桐乡市各级机关单位考试录用公务员面试成绩、总成绩表
A3: 准考证号 | B3: 报考单位 | C3: 报考职位 | D3: 招考人数 | E3: 笔试总成绩 | F3: 面试成绩 | G3: 总成绩 | H3: 名次 | I3: 备注
A4: 04201103714 | B4: 桐乡市委市政府政策研究室 | C4: 科员 | D4: 1 | E4: 142.83 | F4: 84.8 | G4: =E4*0.25+F4*0.5 -> 78.1075 | H4: 1
A5: 04201101513 | B5: 桐乡市委市政府政策研究室 | C5: 科员 | D5: 1 | E5: 135.5 | F5: 86.8 | G5: =E5*0.25+F5*0.5 -> 77.275 | H5: 2
A6: 04201103916 | B6: 桐乡市委市政府政策研究室 | C6: 科员 | D6: 1 | E6: 129 | F6: 84.4 | G6: =E6*0.25+F6*0.5 -> 74.45 | H6: 3
A8: 准考证号 | B8: 报考单位 | C8: 报考职位 | D8: 招考人数 | E8: 笔试总成绩 | F8: 面试成绩 | G8: 总成绩 | H8: 名次 | I8: 备注
A9: 04201100102 | B9: 桐乡市档案局 | C9: 科员 | D9: 1 | E9: 135.33 | F9: 88.6 | G9: =E9*0.25+F9*0.5 -> 78.1325 | H9: 1
A10: 04201103626 | B10: 桐乡市档案局 | C10: 科员 | D10: 1 | E10: 121.5 | F10: 78.6 | G10: =E10*0.25+F10*0.5 -> 69.675 | H10: 2
A11: 04201091918 | B11: 桐乡市档案局 | C11: 科员 | D11: 1 | E11: 121.83 | F11: 74.8 | G11: =E11*0.25+F11*0.5 -> 67.8575 | H11: 3
A13: 准考证号 | B13: 报考单位 | C13: 报考职位 | D13: 招考人数 | E13: 笔试总成绩 | F13: 面试成绩 | G13: 总成绩 | H13: 名次 | I13: 备注
A14: 04201100507 | B14: 桐乡市人民法院 | C14: 法警 | D14: 1 | E14: 118.17 | F14: 82.2 | G14: =E14*0.25+F14*0.5 -> 70.6425 | H14: 1
A15: 04201103322 | B15: 桐乡市人民法院 | C15: 法警 | D15: 1 | E15: 112.33 | F15: 83.2 | G15: =E15*0.25+F15*0.5 -> 69.6825 | H15: 2
A17: 准考证号 | B17: 报考单位 | C17: 报考职位 | D17: 招考人数 | E17: 笔试总成绩 | F17: 面试成绩 | G17: 总成绩 | H17: 名次 | I17: 备注
A18: 04201100506 | B18: 桐乡市人民法院 | C18: 法官助理1 | D18: 1 | E18: 122.33 | F18: 83.6 | G18: =E18*0.25+F18*0.5 -> 72.3825 | H18: 1
A20: 准考证号 | B20: 报考单位 | C20: 报考职位 | D20: 招考人数 | E20: 笔试总成绩 | F20: 面试成绩 | G20: 总成绩 | H20: 名次 | I20: 备注
A21: 04201091022 | B21: 桐乡市人民法院 | C21: 法官助理2 | D21: 1 | E21: 112.83 | F21: 86.2 | G21: =E21*0.25+F21*0.5 -> 71.3075 | H21: 1
A22: 04201100309 | B22: 桐乡市人民法院 | C22: 法官助理2 | D22: 1 | E22: 113.33 | F22: 85 | G22: =E22*0.25+F22*0.5 -> 70.8325 | H22: 2
A24: 准考证号 | B24: 报考单位 | C24: 报考职位 | D24: 招考人数 | E24: 笔试总成绩 | F24: 面试成绩 | G24: 总成绩 | H24: 名次 | I24: 备注
A25: 04201104120 | B25: 桐乡市人民法院 | C25: 法官助理4 | D25: 1 | E25: 120.5 | F25: 88.2 | G25: =E25*0.25+F25*0.5 -> 74.225 | H25: 1
A26: 04201094802 | B26: 桐乡市人民法院 | C26: 法官助理4 | D26: 1 | E26: 119.33 | F26: 87.8 | G26: =E26*0.25+F26*0.5 -> 73.7325 | H26: 2
A27: 04201101707 | B27: 桐乡市人民法院 | C27: 法官助理4 | D27: 1 | E27: 118.17 | F27: 80.6 | G27: =E27*0.25+F27*0.5 -> 69.8425 | H27: 3
A29: 准考证号 | B29: 报考单位 | C29: 报考职位 | D29: 招考人数 | E29: 笔试总成绩 | F29: 面试成绩 | G29: 总成绩 | H29: 名次 | I29: 备注
A30: 04201102318 | B30: 桐乡市人民检察院 | C30: 检察官助理1（驻监所检察） | D30: 1 | E30: 108.17 | F30: 91 | G30: =E30*0.25+F30*0.5 -> 72.5425 | H30: 1
A31: 04201103324 | B31: 桐乡市人民检察院 | C31: 检察官助理1（驻监所检察） | D31: 1 | E31: 107 | F31: 84 | G31: =E31*0.25+F31*0.5 -> 68.75 | H31: 2
A32: 04201090503 | B32: 桐乡市人民检察院 | C32: 检察官助理1（驻监所检察） | D32: 1 | E32: 112.33 | F32: 72.6 | G32: =E32*0.25+F32*0.5 -> 64.3825 | H32: 3
A34: 准考证号 | B34: 报考单位 | C34: 报考职位 | D34: 招考人数 | E34: 笔试总成绩 | F34: 面试成绩 | G34: 总成绩 | H34: 名次 | I34: 备注
A35: 04201090810 | B35: 桐乡市人民检察院 | C35: 检察官助理2 | D35: 1 | E35: 120.17 | F35: 88.8 | G35: =E35*0.25+F35*0.5 -> 74.4425 | H35: 1
A36: 04201100103 | B36: 桐乡市人民检察院 | C36: 检察官助理2 | D36: 1 | E36: 117.67 | F36: 84.8 | G36: =E36*0.25+F36*0.5 -> 71.8175 | H36: 2
A38: 准考证号 | B38: 报考单位 | C38: 报考职位 | D38: 招考人数 | E38: 笔试总成绩 | F38: 面试成绩 | G38: 总成绩 | H38: 名次 | I38: 备注
A39: 04201090516 | B39: 桐乡市人民检察院 | C39: 检察官助理3 | D39: 1 | E39: 122.17 | F39: 88.8 | G39: =E39*0.25+F39*0.5 -> 74.9425 | H39: 1
A40: 04201102610 | B40: 桐乡市人民检察院 | C40: 检察官助理3 | D40: 1 | E40: 126.33 | F40: 81.8 | G40: =E40*0.25+F40*0.5 -> 72.4825 | H40: 2
A41: 04201101212 | B41: 桐乡市人民检察院 | C41: 检察官助理3 | D41: 1 | E41: 119.17 | F41: 81.4 | G41: =E41*0.25+F41*0.5 -> 70.4925 | H41: 3
A42: 04201100119 | B42: 桐乡市人民检察院 | C42: 检察官助理3 | D42: 1 | E42: 119.17 | F42: 80.4 | G42: =E42*0.25+F42*0.5 -> 69.9925 | H42: 4
A44: 准考证号 | B44: 报考单位 | C44: 报考职位 | D44: 招考人数 | E44: 笔试总成绩 | F44: 面试成绩 | G44: 总成绩 | H44: 名次 | I44: 备注
A45: 04201103706 | B45: 桐乡市审计局 | C45: 审计 | D45: 1 | E45: 123.17 | F45: 90.6 | G45: =E45*0.25+F45*0.5 -> 76.0925 | H45: 1
A46: 04201094316 | B46: 桐乡市审计局 | C46: 审计 | D46: 1 | E46: 125.17 | F46: 79.6 | G46: =E46*0.25+F46*0.5 -> 71.0925 | H46: 2
A47: 04201101309 | B47: 桐乡市审计局 | C47: 审计 | D47: 1 | E47: 122.33 | F47: 78.6 | G47: =E47*0.25+F47*0.5 -> 69.8825 | H47: 3
A49: 准考证号 | B49: 报考单位 | C49: 报考职位 | D49: 招考人数 | E49: 笔试总成绩 | F49: 面试成绩 | G49: 总成绩 | H49: 名次 | I49: 备注
A50: 04201090225 | B50: 桐乡市地方税务局 | C50: 基层税务执法1 | D50: 6 | E50: 129.5 | F50: 88.8 | G50: =E50*0.25+F50*0.5 -> 76.775 | H50: 1
A51: 04201101508 | B51: 桐乡市地方税务局 | C51: 基层税务执法1 | D51: 6 | E51: 131.67 | F51: 86.4 | G51: 76.1175 | H51: 2
A52: 04201092911 | B52: 桐乡市地方税务局 | C52: 基层税务执法1 | D52: 6 | E52: 130 | F52: 86 | G52: 75.5 | H52: 3
A53: 04201090919 | B53: 桐乡市地方税务局 | C53: 基层税务执法1 | D53: 6 | E53: 129.17 | F53: 86.4 | G53: 75.4925 | H53: 4
A54: 04201094305 | B54: 桐乡市地方税务局 | C54: 基层税务执法1 | D54: 6 | E54: 126.5 | F54: 87.4 | G54: 75.325 | H54: 5
A55: 04201092917 | B55: 桐乡市地方税务局 | C55: 基层税务执法1 | D55: 6 | E55: 123.67 | F55: 88 | G55: 74.9175 | H55: 6
A56: 04201093118 | B56: 桐乡市地方税务局 | C56: 基层税务执法1 | D56: 6 | E56: 126.67 | F56: 83.2 | G56: 73.2675 | H56: 7
A57: 04201090128 | B57: 桐乡市地方税务局 | C57: 基层税务执法1 | D57: 6 | E57: 121.83 | F57: 85 | G57: 72.9575 | H57: 8
A58: 04201101503 | B58: 桐乡市地方税务局 | C58: 基层税务执法1 | D58: 6 | E58: 123.67 | F58: 81 | G58: 71.4175 | H58: 9
A59: 04201102503 | B59: 桐乡市地方税务局 | C59: 基层税务执法1 | D59: 6 | E59: 121.83 | F59: 71.4 | G59: 66.1575 | H59: 10
A61: 准考证号 | B61: 报考单位 | C61: 报考职位 | D61: 招考人数 | E61: 笔试总成绩 | F61: 面试成绩 | G61: 总成绩 | H61: 名次 | I61: 备注
A62: 04201090619 | B62: 桐乡市地方税务局 | C62: 基层税务执法2 | D62: 6 | E62: 132.5 | F62: 90.4 | G62: =E62*0.25+F62*0.5 -> 78.325 | H62: 1
A63: 04201101920 | B63: 桐乡市地方税务局 | C63: 基层税务执法2 | D63: 6 | E63: 125.67 | F63: 88 | G63: 75.4175 | H63: 2
A64: 04201093822 | B64: 桐乡市地方税务局 | C64: 基层税务执法2 | D64: 6 | E64: 127.33 | F64: 86 | G64: 74.8325 | H64: 3
A65: 04201092001 | B65: 桐乡市地方税务局 | C65: 基层税务执法2 | D65: 6 | E65: 130 | F65: 84.2 | G65: 74.6 | H65: 4
A66: 04201100418 | B66: 桐乡市地方税务局 | C66: 基层税务执法2 | D66: 6 | E66: 128.17 | F66: 85 | G66: 74.5425 | H66: 5
A67: 04201093606 | B67: 桐乡市地方税务局 | C67: 基层税务执法2 | D67: 6 | E67: 125 | F67: 86.4 | G67: 74.45 | H67: 6
A68: 04201093210 | B68: 桐乡市地方税务局 | C68: 基层税务执法2 | D68: 6 | E68: 126 | F68: 85.4 | G68: 74.2 | H68: 7
A69: 04201101310 | B69: 桐乡市地方税务局 | C69: 基层税务执法2 | D69: 6 | E69: 134.5 | F69: 81 | G69: 74.125 | H69: 8
A70: 04201091727 | B70: 桐乡市地方税务局 | C70: 基层税务执法2 | D70: 6 | E70: 125.33 | F70: 83.8 | G70: 73.2325 | H70: 9
A71: 04201091626 | B71: 桐乡市地方税务局 | C71: 基层税务执法2 | D71: 6 | E71: 125 | F71: 82.8 | G71: 72.65 | H71: 10
A72: 04201093501 | B72: 桐乡市地方税务局 | C72: 基层税务执法2 | D72: 6 | E72: 127.67 | F72: 79.2 | G72: 71.5175 | H72: 11
A73: 04201091312 | B73: 桐乡市地方税务局 | C73: 基层税务执法2 | D73: 6 | E73: 125.67 | F73: 80.2 | G73: 71.5175 | H73: 12
A75: 准考证号 | B75: 报考单位 | C75: 报考职位 | D75: 招考人数 | E75: 笔试总成绩 | F75: 面试成绩 | G75: 总成绩 | H75: 名次 | I75: 备注
A76: 04201092825 | B76: 桐乡市地方税务局 | C76: 基层税务执法4 | D76: 1 | E76: 134.17 | F76: 86 | G76: =E76*0.25+F76*0.5 -> 76.5425 | H76: 1
A77: 04201094426 | B77: 桐乡市地方税务局 | C77: 基层税务执法4 | D77: 1 | E77: 126.33 | F77: 85.4 | G77: =E77*0.25+F77*0.5 -> 74.2825 | H77: 2
A78: 04201090908 | B78: 桐乡市地方税务局 | C78: 基层税务执法4 | D78: 1 | E78: 131.33 | F78: 82 | G78: =E78*0.25+F78*0.5 -> 73.8325 | H78: 3
A80: 准考证号 | B80: 报考单位 | C80: 报考职位 | D80: 招考人数 | E80: 笔试总成绩 | F80: 面试成绩 | G80: 总成绩 | H80: 名次 | I80: 备注
A81: 04201092804 | B81: 桐乡市市场监督管理局 | C81: 科员1 | D81: 1 | E81: 133.5 | F81: 87.6 | G81: =E81*0.25+F81*0.5 -> 77.175 | H81: 1
A82: 04201090416 | B82: 桐乡市市场监督管理局 | C82: 科员1 | D82: 1 | E82: 129.67 | F82: 83.4 | G82: =E82*0.25+F82*0.5 -> 74.1175 | H82: 2
A83: 04201092822 | B83: 桐乡市市场监督管理局 | C83: 科员1 | D83: 1 | E83: 130.17 | F83: 81.4 | G83: =E83*0.25+F83*0.5 -> 73.2425 | H83: 3
A85: 准考证号 | B85: 报考单位 | C85: 报考职位 | D85: 招考人数 | E85: 笔试总成绩 | F85: 面试成绩 | G85: 总成绩 | H85: 名次 | I85: 备注
A86: 04201095002 | B86: 桐乡市市场监督管理局 | C86: 科员2 | D86: 1 | E86: 132.33 | F86: 85.2 | G86: =E86*0.25+F86*0.5 -> 75.6825 | H86: 1
A87: 04201101927 | B87: 桐乡市市场监督管理局 | C87: 科员2 | D87: 1 | E87: 124.67 | F87: 85 | G87: =E87*0.25+F87*0.5 -> 73.6675 | H87: 2
A88: 04201100706 | B88: 桐乡市市场监督管理局 | C88: 科员2 | D88: 1 | E88: 123.67 | F88: 82.6 | G88: =E88*0.25+F88*0.5 -> 72.2175 | H88: 3
A90: 准考证号 | B90: 报考单位 | C90: 报考职位 | D90: 招考人数 | E90: 笔试总成绩 | F90: 面试成绩 | G90: 总成绩 | H90: 名次 | I90: 备注
A91: 04201091615 | B91: 桐乡市市场监督管理局 | C91: 科员3 | D91: 1 | E91: 115.33 | F91: 72 | G91: =E91*0.25+F91*0.5 -> 64.8325 | H91: 1
A92: 04201102114 | B92: 桐乡市市场监督管理局 | C92: 科员3 | D92: 1 | E92: 104.17 | F92: 61.4 | G92: =E92*0.25+F92*0.5 -> 56.7425 | H92: 2
A94: 准考证号 | B94: 报考单位 | C94: 报考职位 | D94: 招考人数 | E94: 笔试总成绩 | F94: 面试成绩 | G94: 总成绩 | H94: 名次 | I94: 备注
A95: 04201094422 | B95: 桐乡市就业管理服务处 | C95: 信息管理 | D95: 1 | E95: 125.5 | F95: 83.4 | G95: =E95*0.25+F95*0.5 -> 73.075 | H95: 1
A96: 04201090701 | B96: 桐乡市就业管理服务处 | C96: 信息管理 | D96: 1 | E96: 127.83 | F96: 81.6 | G96: =E96*0.25+F96*0.5 -> 72.7575 | H96: 2
A97: 04201100925 | B97: 桐乡市就业管理服务处 | C97: 信息管理 | D97: 1 | E97: 124.67 | F97: 81.8 | G97: =E97*0.25+F97*0.5 -> 72.0675 | H97: 3
A99: 准考证号 | B99: 报考单位 | C99: 报考职位 | D99: 招考人数 | E99: 笔试总成绩 | F99: 面试成绩 | G99: 总成绩 | H99: 名次 | I99: 备注
A100: 04201093902 | B100: 桐乡市环境监察大队 | C100: 科员 | D100: 1 | E100: 129.33 | F100: 87.4 | G100: =E100*0.25+F100*0.5 -> 76.0325 | H100: 1
A101: 04201102103 | B101: 桐乡市环境监察大队 | C101: 科员 | D101: 1 | E101: 130.83 | F101: 83.6 | G101: =E101*0.25+F101*0.5 -> 74.5075 | H101: 2
A102: 04201093212 | B102: 桐乡市环境监察大队 | C102: 科员 | D102: 1 | E102: 131.17 | F102: 82.4 | G102: =E102*0.25+F102*0.5 -> 73.9925 | H102: 3
A104: 准考证号 | B104: 报考单位 | C104: 报考职位 | D104: 招考人数 | E104: 笔试总成绩 | F104: 面试成绩 | G104: 总成绩 | H104: 名次 | I104: 备注
A105: 04201103715 | B105: 桐乡市农业行政执法大队 | C105: 人事管理 | D105: 1 | E105: 126.33 | F105: 82 | G105: =E105*0.25+F105*0.5 -> 72.5825 | H105: 1
A106: 04201092105 | B106: 桐乡市农业行政执法大队 | C106: 人事管理 | D106: 1 | E106: 129.17 | F106: 76.6 | G106: =E106*0.25+F106*0.5 -> 70.5925 | H106: 2
A107: 04201094221 | B107: 桐乡市农业行政执法大队 | C107: 人事管理 | D107: 1 | E107: 124.5 | F107: 77.6 | G107: =E107*0.25+F107*0.5 -> 69.925 | H107: 3
A109: 准考证号 | B109: 报考单位 | C109: 报考职位 | D109: 招考人数 | E109: 笔试总成绩 | F109: 面试成绩 | G109: 总成绩 | H109: 名次 | I109: 备注
A110: 04201104008 | B110: 桐乡市畜牧兽医局 | C110: 基层检疫员 | D110: 1 | E110: 127.83 | F110: 87.6 | G110: =E110*0.25+F110*0.5 -> 75.7575 | H110: 1
A111: 04201094002 | B111: 桐乡市畜牧兽医局 | C111: 基层检疫员 | D111: 1 | E111: 120.5 | F111: 87.2 | G111: =E111*0.25+F111*0.5 -> 73.725 | H111: 2
A112: 04201090703 | B112: 桐乡市畜牧兽医局 | C112: 基层检疫员 | D112: 1 | E112: 120.17 | F112: 84.4 | G112: =E112*0.25+F112*0.5 -> 72.2425 | H112: 3
A114: 准考证号 | B114: 报考单位 | C114: 报考职位 | D114: 招考人数 | E114: 笔试总成绩 | F114: 面试成绩 | G114: 总成绩 | H114: 名次 | I114: 备注
A115: 04201092415 | B115: 桐乡市文化市场行政执法大队 | C115: 文化市场执法1 | D115: 1 | E115: 125.33 | F115: 85 | G115: =E115*0.25+F115*0.5 -> 73.8325 | H115: 1
A116: 04201090604 | B116: 桐乡市文化市场行政执法大队 | C116: 文化市场执法1 | D116: 1 | E116: 123.83 | F116: 82.4 | G116: =E116*0.25+F116*0.5 -> 72.1575 | H116: 2
A117: 04201090212 | B117: 桐乡市文化市场行政执法大队 | C117: 文化市场执法1 | D117: 1 | E117: 123.17 | F117: 77.4 | G117: =E117*0.25+F117*0.5 -> 69.4925 | H117: 3
A119: 准考证号 | B119: 报考单位 | C119: 报考职位 | D119: 招考人数 | E119: 笔试总成绩 | F119: 面试成绩 | G119: 总成绩 | H119: 名次 | I119: 备注
A120: 04201101519 | B120: 桐乡市文化市场行政执法大队 | C120: 文化市场执法2 | D120: 1 | E120: 119.33 | F120: 83 | G120: =E120*0.25+F120*0.5 -> 71.3325 | H120: 1
A121: 04201103530 | B121: 桐乡市文化市场行政执法大队 | C121: 文化市场执法2 | D121: 1 | E121: 110.67 | F121: 87.2 | G121: =E121*0.25+F121*0.5 -> 71.2675 | H121: 2
A122: 04201093007 | B122: 桐乡市文化市场行政执法大队 | C122: 文化市场执法2 | D122: 1 | E122: 114.33 | F122: 78.6 | G122: =E122*0.25+F122*0.5 -> 67.8825 | H122: 3
A124: 准考证号 | B124: 报考单位 | C124: 报考职位 | D124: 招考人数 | E124: 笔试总成绩 | F124: 面试成绩 | G124: 总成绩 | H124: 名次 | I124: 备注
A125: 04201094614 | B125: 桐乡市文化市场行政执法大队 | C125: 文化市场执法3 | D125: 1 | E125: 136.17 | F125: 87.2 | G125: =E125*0.25+F125*0.5 -> 77.6425 | H125: 1
A126: 04201101829 | B126: 桐乡市文化市场行政执法大队 | C126: 文化市场执法3 | D126: 1 | E126: 133.67 | F126: 85.4 | G126: =E126*0.25+F126*0.5 -> 76.1175 | H126: 2
A127: 04201100222 | B127: 桐乡市文化市场行政执法大队 | C127: 文化市场执法3 | D127: 1 | E127: 132.5 | F127: 84.2 | G127: =E127*0.25+F127*0.5 -> 75.225 | H127: 3
A129: 准考证号 | B129: 报考单位 | C129: 报考职位 | D129: 招考人数 | E129: 笔试总成绩 | F129: 面试成绩 | G129: 总成绩 | H129: 名次 | I129: 备注
A130: 04201103306 | B130: 桐乡市散装水泥办公室 | C130: 科员1 | D130: 1 | E130: 134.5 | F130: 84.4 | G130: =E130*0.25+F130*0.5 -> 75.825 | H130: 1
A131: 04201093716 | B131: 桐乡市散装水泥办公室 | C131: 科员1 | D131: 1 | E131: 125.67 | F131: 86.1 | G131: =E131*0.25+F131*0.5 -> 74.4675 | H131: 2
A132: 04201092907 | B132: 桐乡市散装水泥办公室 | C132: 科员1 | D132: 1 | E132: 124.17 | F132: 86.1 | G132: =E132*0.25+F132*0.5 -> 74.0925 | H132: 3
A133: 04201094622 | B133: 桐乡市散装水泥办公室 | C133: 科员1 | D133: 1 | E133: 124.17 | F133: 78.4 | G133: =E133*0.25+F133*0.5 -> 70.2425 | H133: 4
A135: 准考证号 | B135: 报考单位 | C135: 报考职位 | D135: 招考人数 | E135: 笔试总成绩 | F135: 面试成绩 | G135: 总成绩 | H135: 名次 | I135: 备注
A136: 04201092707 | B136: 桐乡市散装水泥办公室 | C136: 科员2 | D136: 1 | E136: 131.5 | F136: 82.4 | G136: =E136*0.25+F136*0.5 -> 74.075 | H136: 1 | I136: 笔试总成绩排位在前
A137: 04201100901 | B137: 桐乡市散装水泥办公室 | C137: 科员2 | D137: 1 | E137: 129.5 | F137: 83.4 | G137: =E137*0.25+F137*0.5 -> 74.075 | H137: 2
A138: 04201103025 | B138: 桐乡市散装水泥办公室 | C138: 科员2 | D138: 1 | E138: 127.33 | F138: 81.8 | G138: =E138*0.25+F138*0.5 -> 72.7325 | H138: 3
A140: 准考证号 | B140: 报考单位 | C140: 报考职位 | D140: 招考人数 | E140: 笔试总成绩 | F140: 面试成绩 | G140: 总成绩 | H140: 名次 | I140: 备注
A141: 04201091113 | B141: 桐乡市卫生监督所 | C141: 卫生监督1 | D141: 1 | E141: 114.5 | F141: 78.8 | G141: =E141*0.25+F141*0.5 -> 68.025 | H141: 1
A142: 04201102126 | B142: 桐乡市卫生监督所 | C142: 卫生监督1 | D142: 1 | E142: 116.83 | F142: 73 | G142: =E142*0.25+F142*0.5 -> 65.7075 | H142: 2
A144: 准考证号 | B144: 报考单位 | C144: 报考职位 | D144: 招考人数 | E144: 笔试总成绩 | F144: 面试成绩 | G144: 总成绩 | H144: 名次 | I144: 备注
A145: 04201092004 | B145: 桐乡市卫生监督所 | C145: 卫生监督2 | D145: 1 | E145: 116.33 | F145: 81.6 | G145: =E145*0.25+F145*0.5 -> 69.8825 | H145: 1
A146: 04201102511 | B146: 桐乡市卫生监督所 | C146: 卫生监督2 | D146: 1 | E146: 115.67 | F146: 77.6 | G146: =E146*0.25+F146*0.5 -> 67.7175 | H146: 2
A147: 04201101903 | B147: 桐乡市卫生监督所 | C147: 卫生监督2 | D147: 1 | E147: 113.5 | F147: 75.4 | G147: =E147*0.25+F147*0.5 -> 66.075 | H147: 3
A149: 准考证号 | B149: 报考单位 | C149: 报考职位 | D149: 招考人数 | E149: 笔试总成绩 | F149: 面试成绩 | G149: 总成绩 | H149: 名次 | I149: 备注
A150: 04201100517 | B150: 桐乡市卫生监督所 | C150: 卫生监督3 | D150: 1 | E150: 121.5 | F150: 81.4 | G150: =E150*0.25+F150*0.5 -> 71.075 | H150: 1
A151: 04201094908 | B151: 桐乡市卫生监督所 | C151: 卫生监督3 | D151: 1 | E151: 107.83 | F151: 79.4 | G151: =E151*0.25+F151*0.5 -> 66.6575 | H151: 2
A152: 04201101130 | B152: 桐乡市卫生监督所 | C152: 卫生监督3 | D152: 1 | E152: 111.17 | F152: 77.2 | G152: =E152*0.25+F152*0.5 -> 66.3925 | H152: 3
A154: 准考证号 | B154: 报考单位 | C154: 报考职位 | D154: 招考人数 | E154: 笔试总成绩 | F154: 面试成绩 | G154: 总成绩 | H154: 名次 | I154: 备注
A155: 04201103109 | B155: 桐乡市质量技术监督稽查大队 | C155: 质量监督 | D155: 1 | E155: 129.83 | F155: 78 | G155: =E155*0.25+F155*0.5 -> 71.4575 | H155: 1
A156: 04201103601 | B156: 桐乡市质量技术监督稽查大队 | C156: 质量监督 | D156: 1 | E156: 125.33 | F156: 77.6 | G156: =E156*0.25+F156*0.5 -> 70.1325 | H156: 2
A157: 04201094723 | B157: 桐乡市质量技术监督稽查大队 | C157: 质量监督 | D157: 1 | E157: 122.33 | F157: 77.8 | G157: =E157*0.25+F157*0.5 -> 69.4825 | H157: 3
A159: 准考证号 | B159: 报考单位 | C159: 报考职位 | D159: 招考人数 | E159: 笔试总成绩 | F159: 面试成绩 | G159: 总成绩 | H159: 名次 | I159: 备注
A160: 04201090601 | B160: 桐乡市城市经济调查队 | C160: 科员 | D160: 1 | E160: 138.17 | F160: 85.6 | G160: =E160*0.25+F160*0.5 -> 77.3425 | H160: 1
A161: 04201100329 | B161: 桐乡市城市经济调查队 | C161: 科员 | D161: 1 | E161: 131.5 | F161: 84.2 | G161: =E161*0.25+F161*0.5 -> 74.975 | H161: 2
A162: 04201103723 | B162: 桐乡市城市经济调查队 | C162: 科员 | D162: 1 | E162: 132.5 | F162: 82.4 | G162: =E162*0.25+F162*0.5 -> 74.325 | H162: 3
A164: 准考证号 | B164: 报考单位 | C164: 报考职位 | D164: 招考人数 | E164: 笔试总成绩 | F164: 面试成绩 | G164: 总成绩 | H164: 名次 | I164: 备注
A165: 04301104601 | B165: 桐乡市综合行政执法大队 | C165: 基层执法1 | D165: 6 | E165: 123.83 | F165: 85 | G165: =E165*0.25+F165*0.5 -> 73.4575 | H165: 1
A166: 04301104402 | B166: 桐乡市综合行政执法大队 | C166: 基层执法1 | D166: 6 | E166: 123 | F166: 84.8 | G166: 73.15 | H166: 2
A167: 04301104607 | B167: 桐乡市综合行政执法大队 | C167: 基层执法1 | D167: 6 | E167: 124.83 | F167: 83.2 | G167: 72.8075 | H167: 3
A168: 04301104516 | B168: 桐乡市综合行政执法大队 | C168: 基层执法1 | D168: 6 | E168: 127.17 | F168: 81.2 | G168: 72.3925 | H168: 4
A169: 04301104528 | B169: 桐乡市综合行政执法大队 | C169: 基层执法1 | D169: 6 | E169: 127.5 | F169: 80 | G169: 71.875 | H169: 5
A170: 04301104318 | B170: 桐乡市综合行政执法大队 | C170: 基层执法1 | D170: 6 | E170: 123.67 | F170: 78.6 | G170: 70.2175 | H170: 6
A171: 04301104407 | B171: 桐乡市综合行政执法大队 | C171: 基层执法1 | D171: 6 | E171: 131.17 | F171: 74.8 | G171: 70.1925 | H171: 7
A172: 04301104330 | B172: 桐乡市综合行政执法大队 | C172: 基层执法1 | D172: 6 | E172: 121.17 | F172: 79.2 | G172: 69.8925 | H172: 8
A173: 04301104323 | B173: 桐乡市综合行政执法大队 | C173: 基层执法1 | D173: 6 | E173: 121 | F173: 78 | G173: 69.25 | H173: 9
A174: 04301104308 | B174: 桐乡市综合行政执法大队 | C174: 基层执法1 | D174: 6 | E174: 125.83 | F174: 69.6 | G174: 66.2575 | H174: 10
A175: 04301104518 | B175: 桐乡市综合行政执法大队 | C175: 基层执法1 | D175: 6 | E175: 124.5 | F175: 68.4 | G175: 65.325 | H175: 11
A176: 04301104418 | B176: 桐乡市综合行政执法大队 | C176: 基层执法1 | D176: 6 | E176: 119.83 | F176: 缺考 | H176: 12
A178: 准考证号 | B178: 报考单位 | C178: 报考职位 | D178: 招考人数 | E178: 笔试总成绩 | F178: 面试成绩 | G178: 总成绩 | H178: 名次 | I178: 备注
A179: 04301104522 | B179: 桐乡市综合行政执法大队 | C179: 基层执法2 | D179: 1 | E179: 114.33 | F179: 81.6 | G179: =E179*0.25+F179*0.5 -> 69.3825 | H179: 1
A180: 04301104415 | B180: 桐乡市综合行政执法大队 | C180: 基层执法2 | D180: 1 | E180: 114.83 | F180: 79.4 | G180: =E180*0.25+F180*0.5 -> 68.4075 | H180: 2
A181: 04301104313 | B181: 桐乡市综合行政执法大队 | C181: 基层执法2 | D181: 1 | E181: 114.67 | F181: 67 | G181: =E181*0.25+F181*0.5 -> 62.1675 | H181: 3
A183: 准考证号 | B183: 报考单位 | C183: 报考职位 | D183: 招考人数 | E183: 笔试总成绩 | F183: 面试成绩 | G183: 总成绩 | H183: 名次 | I183: 备注
A184: 04301104426 | B184: 桐乡市综合行政执法大队 | C184: 基层执法3 | D184: 1 | E184: 119 | F184: 79.2 | G184: =E184*0.25+F184*0.5 -> 69.35 | H184: 1
A185: 04301104606 | B185: 桐乡市综合行政执法大队 | C185: 基层执法3 | D185: 1 | E185: 114.83 | F185: 76.2 | G185: =E185*0.25+F185*0.5 -> 66.8075 | H185: 2
A186: 04301104320 | B186: 桐乡市综合行政执法大队 | C186: 基层执法3 | D186: 1 | E186: 111.17 | F186: 71.6 | G186: =E186*0.25+F186*0.5 -> 63.5925 | H186: 3
A188: 准考证号 | B188: 报考单位 | C188: 报考职位 | D188: 招考人数 | E188: 笔试总成绩 | F188: 面试成绩 | G188: 总成绩 | H188: 名次 | I188: 备注
A189: 04201092018 | B189: 桐乡市国土资源局乡镇国土资源所 | C189: 土地管理1 | D189: 1 | E189: 129.17 | F189: 83.4 | G189: =E189*0.25+F189*0.5 -> 73.9925 | H189: 1
A190: 04201092814 | B190: 桐乡市国土资源局乡镇国土资源所 | C190: 土地管理1 | D190: 1 | E190: 119.67 | F190: 81 | G190: =E190*0.25+F190*0.5 -> 70.4175 | H190: 2
A192: 准考证号 | B192: 报考单位 | C192: 报考职位 | D192: 招考人数 | E192: 笔试总成绩 | F192: 面试成绩 | G192: 总成绩 | H192: 名次 | I192: 备注
A193: 04201103913 | B193: 桐乡市国土资源局乡镇国土资源所 | C193: 土地管理2 | D193: 1 | E193: 125.17 | F193: 83.4 | G193: =E193*0.25+F193*0.5 -> 72.9925 | H193: 1
A194: 04201102903 | B194: 桐乡市国土资源局乡镇国土资源所 | C194: 土地管理2 | D194: 1 | E194: 118.83 | F194: 79 | G194: =E194*0.25+F194*0.5 -> 69.2075 | H194: 2
A196: 准考证号 | B196: 报考单位 | C196: 报考职位 | D196: 招考人数 | E196: 笔试总成绩 | F196: 面试成绩 | G196: 总成绩 | H196: 名次 | I196: 备注
A197: 04201092619 | B197: 桐乡市安全生产行政执法大队 | C197: 安全管理 | D197: 1 | E197: 124.83 | F197: 87.4 | G197: =E197*0.25+F197*0.5 -> 74.9075 | H197: 1
A198: 04201093414 | B198: 桐乡市安全生产行政执法大队 | C198: 安全管理 | D198: 1 | E198: 124.17 | F198: 86.4 | G198: =E198*0.25+F198*0.5 -> 74.2425 | H198: 2
A199: 04201102023 | B199: 桐乡市安全生产行政执法大队 | C199: 安全管理 | D199: 1 | E199: 123.67 | F199: 80.2 | G199: =E199*0.25+F199*0.5 -> 71.0175 | H199: 3
A200: 04201101114 | B200: 桐乡市安全生产行政执法大队 | C200: 安全管理 | D200: 1 | E200: 123.67 | F200: 77.2 | G200: =E200*0.25+F200*0.5 -> 69.5175 | H200: 4
A202: 准考证号 | B202: 报考单位 | C202: 报考职位 | D202: 招考人数 | E202: 笔试总成绩 | F202: 面试成绩 | G202: 总成绩 | H202: 名次 | I202: 备注
A203: 04201102526 | B203: 桐乡市乡镇机关 | C203: 科员1 | D203: 1 | E203: 127.33 | F203: 84.4 | G203: =E203*0.25+F203*0.5 -> 74.0325 | H203: 1
A204: 04201093005 | B204: 桐乡市乡镇机关 | C204: 科员1 | D204: 1 | E204: 123.67 | F204: 83.6 | G204: =E204*0.25+F204*0.5 -> 72.7175 | H204: 2
A205: 04201094718 | B205: 桐乡市乡镇机关 | C205: 科员1 | D205: 1 | E205: 125.5 | F205: 81.6 | G205: =E205*0.25+F205*0.5 -> 72.175 | H205: 3
A207: 准考证号 | B207: 报考单位 | C207: 报考职位 | D207: 招考人数 | E207: 笔试总成绩 | F207: 面试成绩 | G207: 总成绩 | H207: 名次 | I207: 备注
A208: 04201102527 | B208: 桐乡市乡镇机关 | C208: 科员2 | D208: 1 | E208: 119.5 | F208: 86.2 | G208: =E208*0.25+F208*0.5 -> 72.975 | H208: 1
A209: 04201093701 | B209: 桐乡市乡镇机关 | C209: 科员2 | D209: 1 | E209: 119.83 | F209: 83.2 | G209: =E209*0.25+F209*0.5 -> 71.5575 | H209: 2
A210: 04201104022 | B210: 桐乡市乡镇机关 | C210: 科员2 | D210: 1 | E210: 122.17 | F210: 66.8 | G210: =E210*0.25+F210*0.5 -> 63.9425 | H210: 3
A212: 准考证号 | B212: 报考单位 | C212: 报考职位 | D212: 招考人数 | E212: 笔试总成绩 | F212: 面试成绩 | G212: 总成绩 | H212: 名次 | I212: 备注
A213: 04201102529 | B213: 桐乡市乡镇机关 | C213: 科员3 | D213: 1 | E213: 121.33 | F213: 90.2 | G213: =E213*0.25+F213*0.5 -> 75.4325 | H213: 1
A214: 04201101116 | B214: 桐乡市乡镇机关 | C214: 科员3 | D214: 1 | E214: 126.5 | F214: 76 | G214: =E214*0.25+F214*0.5 -> 69.625 | H214: 2
A215: 04201091620 | B215: 桐乡市乡镇机关 | C215: 科员3 | D215: 1 | E215: 118.33 | F215: 79.4 | G215: =E215*0.25+F215*0.5 -> 69.2825 | H215: 3
A217: 准考证号 | B217: 报考单位 | C217: 报考职位 | D217: 招考人数 | E217: 笔试总成绩 | F217: 面试成绩 | G217: 总成绩 | H217: 名次 | I217: 备注
A218: 04201101805 | B218: 桐乡市乡镇机关 | C218: 科员4 | D218: 1 | E218: 125.17 | F218: 88.2 | G218: =E218*0.25+F218*0.5 -> 75.3925 | H218: 1
A219: 04201100124 | B219: 桐乡市乡镇机关 | C219: 科员4 | D219: 1 | E219: 127.5 | F219: 83.2 | G219: =E219*0.25+F219*0.5 -> 73.475 | H219: 2
A220: 04201092429 | B220: 桐乡市乡镇机关 | C220: 科员4 | D220: 1 | E220: 124.83 | F220: 80.6 | G220: =E220*0.25+F220*0.5 -> 71.5075 | H220: 3
A222: 准考证号 | B222: 报考单位 | C222: 报考职位 | D222: 招考人数 | E222: 笔试总成绩 | F222: 面试成绩 | G222: 总成绩 | H222: 名次 | I222: 备注
A223: 04201103215 | B223: 桐乡市乡镇机关 | C223: 科员5 | D223: 1 | E223: 121.67 | F223: 85.8 | G223: =E223*0.25+F223*0.5 -> 73.3175 | H223: 1
A224: 04201100823 | B224: 桐乡市乡镇机关 | C224: 科员5 | D224: 1 | E224: 119.33 | F224: 83.4 | G224: =E224*0.25+F224*0.5 -> 71.5325 | H224: 2
A225: 04201091427 | B225: 桐乡市乡镇机关 | C225: 科员5 | D225: 1 | E225: 119.83 | F225: 77.6 | G225: =E225*0.25+F225*0.5 -> 68.7575 | H225: 3
A227: 准考证号 | B227: 报考单位 | C227: 报考职位 | D227: 招考人数 | E227: 笔试总成绩 | F227: 面试成绩 | G227: 总成绩 | H227: 名次 | I227: 备注
A228: 04201101103 | B228: 桐乡市乡镇机关 | C228: 专职人民武装干部 | D228: 1 | E228: 120.17 | F228: 87 | G228: =E228*0.25+F228*0.5 -> 73.5425 | H228: 1
A229: 04201102513 | B229: 桐乡市乡镇机关 | C229: 专职人民武装干部 | D229: 1 | E229: 119.83 | F229: 86.2 | G229: =E229*0.25+F229*0.5 -> 73.0575 | H229: 2
A230: 04201091715 | B230: 桐乡市乡镇机关 | C230: 专职人民武装干部 | D230: 1 | E230: 117.5 | F230: 84.6 | G230: =E230*0.25+F230*0.5 -> 71.675 | H230: 3
A232: 准考证号 | B232: 报考单位 | C232: 报考职位 | D232: 招考人数 | E232: 笔试总成绩 | F232: 面试成绩 | G232: 总成绩 | H232: 名次 | I232: 备注
A233: 04201103606 | B233: 桐乡市乡镇机关 | C233: 优秀村干部“岗位1” | D233: 3 | E233: 133 | F233: 86 | G233: =E233*0.25+F233*0.5 -> 76.25 | H233: 1
A234: 04201100701 | B234: 桐乡市乡镇机关 | C234: 优秀村干部“岗位1” | D234: 3 | E234: 116.33 | F234: 90.8 | G234: 74.4825 | H234: 2
A235: 04201100214 | B235: 桐乡市乡镇机关 | C235: 优秀村干部“岗位1” | D235: 3 | E235: 120.5 | F235: 87.2 | G235: 73.725 | H235: 3
A236: 04201102427 | B236: 桐乡市乡镇机关 | C236: 优秀村干部“岗位1” | D236: 3 | E236: 116.67 | F236: 87.6 | G236: 72.9675 | H236: 4
A237: 04201093106 | B237: 桐乡市乡镇机关 | C237: 优秀村干部“岗位1” | D237: 3 | E237: 113.67 | F237: 86.2 | G237: 71.5175 | H237: 5
A238: 04201090119 | B238: 桐乡市乡镇机关 | C238: 优秀村干部“岗位1” | D238: 3 | E238: 115.67 | F238: 84.8 | G238: 71.3175 | H238: 6
A239: 04201101413 | B239: 桐乡市乡镇机关 | C239: 优秀村干部“岗位1” | D239: 3 | E239: 116.17 | F239: 84.2 | G239: 71.1425 | H239: 7
A240: 04201091214 | B240: 桐乡市乡镇机关 | C240: 优秀村干部“岗位1” | D240: 3 | E240: 115.83 | F240: 83.4 | G240: 70.6575 | H240: 8
A241: 04201090923 | B241: 桐乡市乡镇机关 | C241: 优秀村干部“岗位1” | D241: 3 | E241: 115.17 | F241: 83.2 | G241: 70.3925 | H241: 9
A243: 准考证号 | B243: 报考单位 | C243: 报考职位 | D243: 招考人数 | E243: 笔试总成绩 | F243: 面试成绩 | G243: 总成绩 | H243: 名次 | I243: 备注
... 15 more rows
